fUST/lending_fUST_20250416
["ID","MTS","AMOUNT","RATE_DAILY","PERIOD"]
[358139136,1744761037890,-153.33,0.000319,31]
[358139137,1744761037899,-153.33,0.000319,31]
[358139139,1744761037909,-153.33,0.000319,31]
[358139141,1744761037919,-153.33,0.000319,31]
[358139143,1744761037928,-153.33,0.000319,31]
[358139145,1744761037938,-153.33,0.000319,31]
[358139147,1744761037947,-153.33,0.000319,31]
[358139149,1744761037957,-153.33,0.000319,31]
[358139151,1744761037967,-153.33,0.000319,31]
[358139152,1744761037976,-153.33,0.000319,31]
[358139154,1744761037986,-220.86356398,0.000319,10]
[358139155,1744761037995,-650.5778259,0.00031945,120]
[358139156,1744761038012,-682.4221741,0.00031945,120]
[358139157,1744761038022,-180.06481411,0.00033092,10]
[358139158,1744761038031,-160.0,0.00033269,2]
[358139159,1744761038041,-187.8820345,0.00033753,2]
[358139160,1744761038050,-560.0,0.00034312,2]
[358139161,1744761038060,-449.93865546,0.00034454,3]
[358139162,1744761038073,-110.06134454,0.00034454,3]
[358139163,1744761038082,-160.0,0.00034639,2]
[358139164,1744761038092,-420.08908737,0.00035448,2]
[358139165,1744761038102,-160.0,0.00035448,2]
[358139166,1744761038111,-160.0,0.00035448,2]
[358139167,1744761038121,-838.71732705,0.00035448,2]
[358139168,1744761038133,-160.0,0.00035448,2]
[358139169,1744761038143,-246.42445996,0.00035562,7]
[358139170,1744761038153,-163.0,0.0003571,2]
[358139171,1744761038163,-1126.15245557,0.0003571,5]
[358139213,1744761045800,-3734.52506335,0.0003571,5]
[358139214,1744761046461,-256.808065,0.0003571,5]
[358139215,1744761046474,-441.8099972,0.0003571,5]
[358139223,1744762114307,152.05,0.0001801,2]
[358139271,1744762232033,-467.23226278,0.000189,2]
[358139273,1744762232043,-467.23226278,0.000239,2]
[358139274,1744762232053,-500.0,0.000269,7]
[358139275,1744762232063,-1000.0,0.00027,10]
[358139276,1744762232073,-312.5017938,0.00027,3]
[358139277,1744762232084,-153.37,0.000273,31]
[358139278,1744762232093,-153.37,0.000273,31]
[358139279,1744762232104,-153.37,0.000273,31]
[358139280,1744762232114,-500.0,0.0002759,7]
[358139281,1744762232123,-312.5017938,0.00028,10]
[358139282,1744762232133,-500.0,0.00028279,7]
[358139283,1744762232143,-467.23226278,0.000289,2]
[358139284,1744762232153,-500.0,0.00028969,8]
[358139285,1744762232162,-398.38201374,0.00029554,2]
[358139286,1744762232172,-2485.95841837,0.00029654,2]
[358139292,1744762232204,-2198.96,0.00029654,2]
[358139321,1744762238148,-399.82719863,0.00029653,2]
[358139322,1744762238233,-100.17280137,0.00029653,2]
[358139323,1744762238243,-500.0,0.00029653,2]
[358139324,1744762238253,-346.20442465,0.00029653,2]
[358139325,1744762238265,-153.79557535,0.00029653,2]
[358139326,1744762238276,-500.0,0.00029653,2]
[358139327,1744762238285,-500.0,0.00029653,2]
[358139328,1744762238295,-500.0,0.00029653,2]
[358139329,1744762238305,-500.0,0.00029653,2]
[358139330,1744762238316,-500.0,0.00029653,2]
[358139331,1744762238326,-500.0,0.00029653,2]
[358139332,1744762238336,-500.0,0.00029653,2]
[358139334,1744762238346,-500.0,0.00029653,2]
[358139335,1744762238360,-451.58792916,0.00029653,2]
[358139336,1744762238370,-387.26831675,0.00029653,2]
[358139337,1744762238387,-112.73168325,0.00029653,2]
[358139338,1744762238397,-500.0,0.00029653,2]
[358139339,1744762238406,-205.66766609,0.00029653,2]
[358139340,1744762238416,-32050.57326198,0.00029654,2]
[358139341,1744762238426,-300.0,0.00029654,2]
[358139342,1744762238437,-4359.3748423,0.00029655,2]
[358139343,1744762238447,-500.0,0.00029659,8]
[358139344,1744762238456,-172.689351,0.00029682,2]
[358139345,1744762238465,-200.00806277,0.00030137,2]
[358139346,1744762238474,-500.0,0.00030348,9]
[358139347,1744762238483,-1029.11979521,0.00030872,3]
[358139348,1744762238493,-12876.90973089,0.00030872,2]
[358139349,1744762238507,-2240.19619648,0.00030872,2]
[358139350,1744762238517,-500.0,0.00030873,5]
[358139351,1744762238527,-500.0,0.00030873,5]
[358139352,1744762238537,-159.3832765,0.00030873,5]
[358139353,1744762238547,-500.0,0.00030873,5]
[358139354,1744762238556,-500.0,0.00030873,5]
[358139355,1744762238566,-500.0,0.00030873,5]
[358139356,1744762238576,-500.0,0.00031038,9]
[358139357,1744762238586,-577.0,0.00031624,30]
[358139358,1744762238596,-500.0,0.00031728,10]
[358139359,1744762238609,-500.0,0.00031873,4]
[358139360,1744762238618,-398.38201372,0.00031894,2]
[358139361,1744762238628,-153.37,0.000319,31]
[358139362,1744762238642,-153.37,0.000319,31]
[358139363,1744762238652,-153.37,0.000319,31]
[358139364,1744762238662,-153.37,0.000319,31]
[358139365,1744762238672,-153.37,0.000319,31]
[358139366,1744762238682,-153.37,0.000319,31]
[358139367,1744762238693,-1121.62799232,0.00031945,120]
[358139368,1744762238703,-420.0,0.00032108,3]
[358139369,1744762238714,-500.0,0.00032417,10]
[358139370,1744762238724,-414.55051039,0.00033,2]
[358139371,1744762238737,-779.54292761,0.00033,2]
[358139372,1744762238747,-500.0,0.00033107,11]
[358139373,1744762238758,-279.535833,0.00033621,2]
[358139374,1744762238768,-500.0,0.00033797,11]
[358139375,1744762238778,-398.38201372,0.00034234,2]
[358139376,1744762238788,-500.0,0.00034486,11]
[358139377,1744762238798,-587.0,0.00034765,3]
[358139378,1744762238808,-500.0,0.00035176,12]
[358139379,1744762238819,-500.0,0.00035176,12]
[358139380,1744762238828,-500.0,0.0003545,12]
[358139381,1744762238841,-2997.84552082,0.0003571,5]
[358139389,1744762240410,-288.99,0.00031624,30]
[358139390,1744762240421,-162.0,0.00033,2]
[358139391,1744762240433,-162.0,0.00034521,2]
[358139392,1744762240443,-3942.85889806,0.0003571,5]
[358139393,1744762240454,-500.0,0.00035724,12]
[358139394,1744762240464,-500.0,0.00035866,12]
[358139395,1744762240474,-500.0,0.00035998,12]
[358139396,1744762240484,-160.0,0.00036001,2]
[358139397,1744762240494,-160.0,0.00036001,2]
[358139398,1744762240504,-420.08908737,0.00036001,2]
[358139399,1744762240513,-160.0,0.00036001,2]
[358139400,1744762240524,-160.0,0.00036002,2]
[358139401,1744762240534,-181.85394381,0.000362,120]
[358139402,1744762240544,-500.0,0.00036272,12]
[358139404,1744762240554,-1544.63507374,0.00036342,3]
[358139406,1744762240563,-1000.0,0.00036352,5]
[358139407,1744762240575,-375.60368271,0.00036352,5]
[358139408,1744762240584,-1000.0,0.00036352,5]
[358139409,1744762240594,-500.0,0.00036352,5]
[358139410,1744762240604,-1000.0,0.00036352,5]
[358139411,1744762240617,-153.37,0.000365,31]
[358139412,1744762240627,-153.37,0.000365,31]
[358139413,1744762240637,-153.37,0.000365,31]
[358139414,1744762240647,-153.37,0.000365,31]
[358139415,1744762240656,-153.37,0.000365,31]
[358139416,1744762240666,-153.37,0.000365,31]
[358139417,1744762240676,-500.0,0.00036546,12]
[358139418,1744762240685,-500.0,0.00036555,13]
[358139419,1744762240695,-398.38201372,0.00036574,2]
[358139420,1744762240705,-643.83000001,0.0003682,12]
[358139421,1744762240715,-500.0,0.00037245,13]
[358139422,1744762240724,-1000.0,0.00037352,4]
[358139423,1744762240734,-500.0,0.0003737,21]
[358139424,1744762240744,-823.0,0.00037642,3]
[358139425,1744762240753,-500.0,0.00037644,21]
[358139426,1744762240763,-500.0,0.00037918,21]
[358139427,1744762240773,-500.0,0.00037934,14]
[358139428,1744762240783,-500.0,0.00038192,21]
[358139429,1744762240793,-402.0,0.00038249,2]
[358139430,1744762240803,-500.0,0.00038466,21]
[358139431,1744762240813,-500.0,0.00038624,14]
[358139432,1744762240822,-500.0,0.0003874,21]
[358139433,1744762240832,-398.38201372,0.00038914,2]
[358139434,1744762240844,-615.59150935,0.00039014,21]
[358139435,1744762240854,-500.0,0.00039277,15]
[358139436,1744762240866,-500.0,0.00039277,15]
[358139437,1744762240877,-235.30236085,0.00039277,15]
[358139438,1744762240887,-500.0,0.00039277,15]
[358139439,1744762240898,-585.61054558,0.00039277,15]
[358139440,1744762240908,-500.0,0.00039277,15]
[358139441,1744762240919,-500.0,0.00039277,15]
[358139442,1744762240929,-430.42217839,0.00039277,15]
[358139443,1744762240940,-500.0,0.00039277,15]
[358139444,1744762240950,-293.88234057,0.00039277,15]
[358139445,1744762240960,-500.0,0.00039277,15]
[358139446,1744762240970,-330.06762948,0.00039277,15]
[358139447,1744762240980,-500.0,0.00039277,15]
[358139448,1744762240990,-500.0,0.00039277,15]
[358139449,1744762241000,-500.0,0.00039277,15]
[358139450,1744762241011,-500.0,0.00039314,15]
[358139451,1744762241021,-200.0,0.000395,120]
[358139452,1744762241031,-685.07071207,0.00039834,2]
[358139453,1744762241042,-1502.88051992,0.0004,20]
[358139454,1744762241053,-110.42195739,0.0004,120]
[358139472,1744762245674,-163.0,0.00036247,2]
[358139473,1744762245944,-162.0,0.00039871,14]
[358139474,1744762245953,-90.57804261,0.0004,120]
[358139475,1744762245963,-270.39195739,0.0004,7]
[358139476,1744762246172,-42.00804261,0.0004,7]
[358139477,1744762246182,-500.0,0.00040003,15]
[358139478,1744762246192,-160.0,0.00040541,3]
[358139479,1744762246202,-500.0,0.00040693,16]
[358139480,1744762246212,-1152.0,0.00040758,5]
[358139481,1744762246222,-251.3,0.00040918,2]
[358139482,1744762246232,-150.187,0.00040918,2]
[358139483,1744762246242,-707.0,0.00040918,2]
[358139484,1744762246251,-543.0,0.00040918,2]
[358139485,1744762246262,-200.0,0.00041,30]
[358139486,1744762246272,-581.89252272,0.00041,120]
[358139487,1744762246281,-500.0,0.00041061,30]
[358139488,1744762246291,-1000.0,0.00041096,6]
[358139489,1744762246301,-1000.0,0.00041096,6]
[358139490,1744762246311,-500.0,0.00041096,31]
[358139491,1744762246321,-500.0,0.00041096,31]
[358139492,1744762246331,-409.19636709,0.00041096,31]
[358139493,1744762246340,-153.37,0.000412,31]
[358139494,1744762246350,-153.37,0.000412,31]
[358139495,1744762246359,-153.37,0.000412,31]
[358139496,1744762246370,-153.37,0.000412,31]
[358139497,1744762246379,-153.37,0.000412,31]
[358139498,1744762246389,-153.37,0.000412,31]
[358139499,1744762246398,-1000.0,0.00041233,20]
[358139500,1744762246407,-1000.0,0.00041233,20]
[358139501,1744762246416,-398.38201372,0.00041254,28]
[358139502,1744762246425,-500.0,0.00041286,30]
[358139503,1744762246435,-500.0,0.00041288,30]
[358139504,1744762246444,-1000.0,0.0004137,20]
[358139505,1744762246453,-1000.0,0.0004137,20]
[358139506,1744762246463,-500.0,0.00041383,16]
[358139507,1744762246473,-500.0,0.00041399,30]
[358139508,1744762246484,-500.0,0.00041448,30]
[358139509,1744762246493,-500.94,0.000415,120]
[358139510,1744762246503,-1000.0,0.00041507,20]
[358139511,1744762246512,-1000.0,0.00041507,20]
[358139512,1744762246521,-500.0,0.00041596,30]
[358139513,1744762246531,-1000.0,0.00041644,20]
[358139514,1744762246541,-500.0,0.00041713,30]
[358139515,1744762246551,-1000.0,0.00041781,20]
[358139516,1744762246561,-200.0,0.000418,120]
[358139517,1744762246571,-500.0,0.0004186,30]
[358139518,1744762246580,-1000.0,0.00041918,20]
[358139519,1744762246590,-500.0,0.00041935,30]
[358139520,1744762246599,-500.0,0.0004199,30]
[358139521,1744762246609,-1000.0,0.00042055,20]
[358139522,1744762246619,-846.0,0.00042055,20]
[358139523,1744762246629,-500.0,0.00042072,16]
[358139524,1744762246639,-500.0,0.0004212,30]
[358139525,1744762246649,-2691.87,0.0004214,10]
[358139526,1744762246659,-500.0,0.0004215,30]
[358139527,1744762246668,-600.0,0.00042177,60]
[358139528,1744762246677,-1544.63507374,0.00042197,3]
[358139529,1744762246687,-500.0,0.00042465,30]
[358139530,1744762246697,-165.24567683,0.000425,120]
[358139531,1744762246707,-500.0,0.00042529,30]
[358139532,1744762246716,-500.0,0.00042606,30]
[358139533,1744762246726,-849.31574402,0.0004265,120]
[358139534,1744762246737,-500.0,0.00042713,30]
[358139535,1744762246747,-500.0,0.00042714,30]
[358139536,1744762246756,-600.0,0.00042725,60]
[358139537,1744762246767,-500.0,0.00042762,17]
[358139538,1744762246777,-501.72104897,0.00042778,30]
[358139539,1744762246786,-500.0,0.00042781,30]
[358139540,1744762246797,-600.0,0.00042912,2]
[358139541,1744762246807,-200.0,0.00043,30]
[358139542,1744762246817,-500.0,0.00043014,2]
[358139543,1744762246828,-500.0,0.0004303,30]
[358139544,1744762246837,-500.0,0.00043039,30]
[358139545,1744762246852,-246.3628302,0.00043093,4]
[358139546,1744762246862,-844.0,0.000431,7]
[358139547,1744762246872,-500.0,0.00043106,30]
[358139548,1744762246883,-1251.14316371,0.00043247,15]
[358139549,1744762246892,-600.0,0.00043273,60]
[358139550,1744762246902,-500.0,0.0004338,30]
[358139551,1744762246913,-500.0,0.00043451,30]
[358139552,1744762246924,-500.0,0.00043452,17]
[358139553,1744762246934,-162.0,0.00043496,90]
[358139554,1744762246944,-160.0,0.00043589,120]
[358139555,1744762246955,-398.38201372,0.00043594,28]
[358139556,1744762246965,-295.55,0.0004366,120]
[358139557,1744762246975,-150.5,0.0004366,30]
[358139558,1744762246983,-150.5,0.0004367,120]
[358139559,1744762246992,-150.5,0.0004367,30]
[358139560,1744762247001,-299.7,0.0004368,120]
[358139561,1744762247011,-150.5,0.0004368,120]
[358139562,1744762247020,-150.5,0.0004368,30]
[358139563,1744762247030,-500.0,0.0004369,20]
[358139564,1744762247039,-509.614,0.0004369,120]
[358139565,1744762247049,-1000.0,0.00043699,20]
[358139566,1744762247059,-2742.97,0.000437,30]
[358139567,1744762247069,-500.0,0.000437,120]
[358139568,1744762247079,-500.0,0.000437,120]
[358139569,1744762247088,-500.0,0.000437,120]
[358139570,1744762247097,-500.0,0.000437,120]
[358139571,1744762247107,-500.0,0.000437,120]
[358139572,1744762247118,-499.56,0.000437,120]
[358139573,1744762247129,-200.0,0.00043712,14]
[358139574,1744762247139,-200.0,0.00043726,14]
[358139575,1744762247148,-203.14243374,0.00043726,14]
[358139576,1744762247157,-200.0,0.00043785,120]
[358139577,1744762247167,-792.45873307,0.000438,120]
[358139578,1744762247176,-500.0,0.00043808,120]
[358139579,1744762247186,-500.0,0.00043808,120]
[358139580,1744762247196,-500.0,0.00043808,120]
[358139581,1744762247206,-500.0,0.00043808,120]
[358139582,1744762247215,-500.0,0.00043808,120]
[358139583,1744762247224,-305.53377732,0.00043808,120]
[358139584,1744762247233,-600.0,0.00043821,60]
[358139585,1744762247243,-2101.63645617,0.00043825,3]
[358139673,1744763432018,-199.45160834,0.000254,2]
[358139675,1744763432028,-161.23,0.000255,2]
[358139677,1744763432038,-86.66853786,0.00030137,2]
[358139683,1744763432073,-119.02115928,0.00030137,2]
[358139685,1744763432082,-245.24624641,0.00031524,2]
[358139687,1744763432092,-250.0,0.00031524,2]
[358139689,1744763432102,-1264.44275029,0.00031945,120]
[358139691,1744763432111,-491.62963,0.00032495,30]
[358139693,1744763432120,-208.33333337,0.000329,10]
[358139695,1744763432129,-231.04411742,0.00033753,2]
[358139697,1744763432139,-208.33333333,0.00034173,11]
[358139699,1744763432149,-208.33333333,0.00035445,12]
[358139701,1744763432159,-208.33333333,0.00036718,13]
[358139703,1744763432168,-400.0,0.00037585,3]
[358139704,1744763432178,-400.0,0.00037586,2]
[358139706,1744763432187,-208.33333333,0.00037991,14]
[358139707,1744763432197,-4250.87056989,0.00038858,2]
[358139708,1744763432209,-7644.59894331,0.00038858,2]
[358139709,1744763432219,-172.689351,0.00038877,2]
[358139710,1744763432228,-208.33333333,0.00039264,15]
[358139711,1744763432238,-483.71,0.000401,7]
[358139712,1744763432252,-560.0,0.00040193,5]
[358139713,1744763432262,-279.5358348,0.00040331,2]
[358139714,1744763432272,-560.0,0.00040345,5]
[358139715,1744763432281,-208.33333333,0.00040536,15]
[358139716,1744763432292,-550.0,0.00041114,120]
[358139717,1744763432302,-500.0,0.00041311,30]
[358139718,1744763432311,-500.0,0.00041471,30]
[358139719,1744763432323,-208.33333333,0.00041809,16]
[358139720,1744763432332,-500.0,0.00041811,30]
[358139721,1744763432342,-500.0,0.00041925,30]
[358139722,1744763432351,-550.0,0.00042114,120]
[358139723,1744763432362,-500.0,0.00042177,60]
[358139724,1744763432371,-500.0,0.00042252,30]
[358139725,1744763432380,-500.0,0.00042312,30]
[358139726,1744763432390,-500.0,0.00042494,30]
[358139727,1744763432399,-500.0,0.00042549,30]
[358139728,1744763432408,-500.0,0.00042577,30]
[358139729,1744763432418,-500.0,0.00042725,60]
[358139730,1744763432428,-500.0,0.00042774,30]
[358139731,1744763432437,-500.0,0.00042959,30]
[358139732,1744763432447,-355.0,0.0004298,5]
[358139733,1744763432456,-160.0,0.00043,30]
[358139734,1744763432466,-500.0,0.00043014,2]
[358139735,1744763432475,-152.61504102,0.00043041,30]
[358139736,1744763432485,-208.33333333,0.00043082,17]
[358139737,1744763432494,-184.7721227,0.00043093,4]
[358139738,1744763432503,-519.95103999,0.00043114,120]
[358139739,1744763432512,-500.0,0.00043273,60]
[358139740,1744763432521,-783.0,0.00043307,5]
[358139741,1744763432530,-500.0,0.00043394,30]
[358139742,1744763432539,-500.0,0.00043467,30]
[358139743,1744763432548,-709.10149253,0.00043489,28]
[358139744,1744763432557,-1203.00899553,0.000435,120]
[358139745,1744763432566,-152.61504102,0.00043589,30]
[358139746,1744763432575,-150.1,0.00043606,3]
[358139747,1744763432585,-175.87041877,0.00043633,2]
[358139748,1744763432595,-176.88659458,0.00043689,2]
[358139749,1744763432604,-500.0,0.000437,10]
[358139750,1744763432613,-160.0,0.0004372,2]
[358139751,1744763432623,-500.0,0.00043724,31]
[358139752,1744763432632,-242.9,0.00043725,30]
[358139753,1744763432641,-160.0,0.00043725,3]
[358139754,1744763432650,-160.0,0.00043725,3]
[358139755,1744763432660,-18519.6672165,0.00043725,3]
[358139756,1744763432667,-160.0,0.00043726,2]
[358139757,1744763432674,-160.0,0.00043727,2]
[358139758,1744763432682,-160.0,0.00043727,2]
[358139759,1744763432689,-838.71732705,0.00043727,2]
[358139760,1744763432697,-420.08908737,0.00043733,2]
[358139761,1744763432704,-2436.09214041,0.00043734,120]
[358139762,1744763432711,-160.0,0.00043734,120]
[358139763,1744763432718,-500.0,0.00043734,31]
[358139764,1744763432725,-500.0,0.00043734,31]
[358139765,1744763432732,-219.69708958,0.00043734,31]
[358139766,1744763432740,-500.0,0.00043734,31]
[358139767,1744763432748,-409.9273819,0.00043734,31]
[358139768,1744763432756,-501.29552487,0.00043734,31]
[358139769,1744763432764,-500.0,0.00043734,31]
[358139770,1744763432771,-500.0,0.00043734,31]
[358139771,1744763432777,-500.0,0.00043734,31]
[358139772,1744763432784,-331.04734063,0.00043734,31]
[358139773,1744763432793,-500.0,0.00043734,31]
[358139774,1744763432802,-39186.07658999,0.00043735,2]
[358139775,1744763432811,-1898.58944272,0.00043735,3]
[358139776,1744763432818,-828.536201,0.00043735,2]
[358139777,1744763432831,-828.536201,0.00043735,2]
[358139778,1744763432839,-84449.98116893,0.00043735,2]
[358139788,1744763438092,-312.5017938,0.00028,10]
[358139789,1744763438104,-304.46844193,0.00032495,30]
[358139790,1744763438151,-185.56682207,0.00032495,30]
[358139791,1744763438164,-500.0,0.0004372,31]
[358139792,1744763438176,-500.0,0.0004372,31]
[358139793,1744763438188,-500.0,0.0004372,31]
[358139794,1744763438205,-500.0,0.0004372,31]
[358139795,1744763438217,-500.0,0.0004372,31]
[358139797,1744763438230,-500.0,0.0004372,31]
[358139799,1744763438242,-500.0,0.0004372,2]
[358139800,1744763438258,-500.0,0.0004372,2]
[358139801,1744763438270,-500.0,0.0004372,31]
[358139802,1744763438283,-500.0,0.0004372,31]
[358139803,1744763438298,-500.0,0.0004372,31]
[358139804,1744763438311,-500.0,0.0004372,2]
[358139805,1744763438325,-500.0,0.0004372,2]
[358139806,1744763438338,-339.98363437,0.0004372,31]
[358139807,1744763438350,-500.0,0.0004372,31]
[358139808,1744763438362,-380.40373279,0.0004372,31]
[358139809,1744763438376,-204.77989993,0.0004372,2]
[358139810,1744763438388,-500.0,0.0004372,2]
[358139811,1744763438400,-500.0,0.0004372,31]
[358139812,1744763438412,-500.0,0.0004372,2]
[358139813,1744763438424,-500.0,0.0004372,2]
[358139814,1744763438437,-561.56417001,0.0004372,31]
[358139815,1744763438456,-500.0,0.0004372,2]
[358139816,1744763438468,-500.0,0.0004372,2]
[358139817,1744763438480,-170.19318961,0.00043725,2]
[358139818,1744763438493,-3427.65,0.00043725,10]
[358139819,1744763438506,-13237.26531807,0.00043735,2]
[358139820,1744763438522,-1020.0,0.00043735,2]
[358139821,1744763438558,-567.45725652,0.00043735,2]
[358139822,1744763438572,-1474.68474239,0.00043735,2]
[358139823,1744763438587,-792.2,0.00043735,2]
[358139824,1744763438602,-37297.69374539,0.00043735,2]
[358139833,1744763440299,-2228.14330932,0.00043735,2]
[358139834,1744763440314,-545.1936999,0.00043735,2]
[358139835,1744763440331,-37077.0229103,0.00043735,2]
[358139852,1744763443144,-6044.84798019,0.00043735,2]
[358139853,1744763443199,-475.36980526,0.00043735,2]
[358139854,1744763443215,-737.16808519,0.00043735,2]
[358139875,1744763446179,-368.72,0.00032495,30]
[358139876,1744763446193,-465.86399981,0.00043735,2]
[358139877,1744763446208,-21149.67219374,0.00043735,2]
[358139878,1744763446223,-524.27496881,0.00043735,2]
[358139879,1744763446238,-3046.74680909,0.00043735,2]
[358139881,1744763550119,-540.0345288,0.000253,2]
[358139889,1744763960642,-181.85394381,0.00039589,120]
[358139890,1744763960664,-236.29211238,0.000414,30]
[358139891,1744764018311,181.85394381,0.00039589,120]
[358139897,1744764632414,-312.5017938,0.00028,10]
[358139898,1744764632424,-2577.62755439,0.00030899,2]
[358139899,1744764632434,-181.25196442,0.00032788,9]
[358139900,1744764632443,-208.33333333,0.000329,10]
[358139901,1744764632454,-250.0,0.00034144,2]
[358139902,1744764632464,-634.24223407,0.00037764,2]
[358139903,1744764632473,-201.0,0.000387,120]
[358139904,1744764632483,-300.0,0.00039434,5]
[358139905,1744764632494,-400.0,0.00039435,5]
[358139906,1744764632504,-248.02798,0.00039441,2]
[358139907,1744764632514,-160.0,0.00039627,2]
[358139908,1744764632523,-160.0,0.00039627,2]
[358139909,1744764632533,-197.2134218,0.00039716,2]
[358139910,1744764632543,-696.76410452,0.00039753,2]
[358139911,1744764632552,-208.33333333,0.000399,15]
[358139912,1744764632562,-439.28,0.000404,7]
[358139913,1744764632572,-500.0,0.0004101,30]
[358139914,1744764632581,-650.99020487,0.00041017,2]
[358139915,1744764632591,-500.0,0.00041233,30]
[358139916,1744764632603,-307.12,0.000414,30]
[358139917,1744764632615,-500.0,0.00041561,30]
[358139918,1744764632624,-500.0,0.0004182,30]
[358139919,1744764632634,-500.0,0.00041841,30]
[358139920,1744764632645,-741.4055111,0.0004195,2]
[358139921,1744764632655,-500.0,0.0004197,30]
[358139922,1744764632665,-560.0,0.00042245,5]
[358139923,1744764632675,-500.0,0.00042485,30]
[358139924,1744764632685,-500.0,0.00042574,30]
[358139925,1744764632695,-543.0,0.00042646,2]
[358139926,1744764632704,-707.0,0.00042646,2]
[358139927,1744764632714,-402.0,0.00042646,2]
[358139928,1744764632723,-600.0,0.00042912,2]
[358139929,1744764632733,-500.0,0.00042946,30]
[358139930,1744764632743,-190.0,0.00043,30]
[358139931,1744764632753,-170.0,0.00043,90]
[358139932,1744764632763,-500.0,0.00043014,2]
[358139933,1744764632774,-184.7721227,0.00043091,4]
[358139934,1744764632783,-526.53111101,0.0004314,120]
[358139935,1744764632793,-500.0,0.0004324,120]
[358139936,1744764632803,-500.0,0.00043349,30]
[358139937,1744764632812,-160.0,0.00043357,3]
[358139938,1744764632823,-163.47837642,0.00043357,5]
[358139939,1744764632833,-866.4628029,0.00043359,2]
[358139940,1744764632842,-500.0,0.00043462,30]
[358139941,1744764632853,-763.70788762,0.00043476,30]
[358139942,1744764632863,-1175.55105556,0.00043524,28]
[358139943,1744764632872,-385.79722862,0.00043525,2]
[358139944,1744764632882,-385.79722861,0.00043529,2]
[358139945,1744764632891,-385.79722861,0.00043533,2]
[358139946,1744764632900,-385.79722861,0.00043537,2]
[358139947,1744764632910,-385.79722861,0.00043541,2]
[358139948,1744764632920,-500.0,0.00043556,30]
[358139949,1744764632929,-150.1,0.00043606,3]
[358139950,1744764632939,-151.0,0.00043609,2]
[358139951,1744764632949,-898.24,0.00043614,30]
[358139952,1744764632960,-2856.37,0.00043615,10]
[358139953,1744764632970,-41075.13045,0.00043623,4]
[358139954,1744764632980,-500.0,0.00043624,31]
[358139955,1744764632990,-500.0,0.00043624,31]
[358139956,1744764632999,-500.0,0.00043624,31]
[358139957,1744764633009,-500.0,0.00043624,31]
[358139958,1744764633019,-153.78796271,0.00043624,31]
[358139959,1744764633030,-500.0,0.00043624,31]
[358139960,1744764633039,-200.90686741,0.00043624,31]
[358139961,1744764633049,-500.0,0.00043624,31]
[358139962,1744764633059,-286.94916733,0.00043624,31]
[358139963,1744764633070,-326.48955864,0.00043624,31]
[358139964,1744764633080,-500.0,0.00043624,31]
[358139965,1744764633090,-5924.68438914,0.00043625,3]
[358139966,1744764633101,-1516.21661094,0.00043625,3]
[358139967,1744764633111,-41472.790724,0.00043625,3]
[358139968,1744764633121,-10613.5162766,0.00043625,3]
[358139969,1744764633131,-160.0,0.00043625,3]
[358139970,1744764633141,-160.0,0.00043635,3]
[358139971,1744764633151,-53438.01714946,0.00043635,2]
[358139972,1744764633162,-1641.30949392,0.00043635,3]